bitfinex/quotes_SOLUSD_20260228
["timestamp","ask_amount","ask_price","bid_price","bid_amount"]
[1772291723534,4.3046945,79.959,79.923,4.42856184]
[1772291724020,4.3046945,79.959,79.92,16.8016255]
[1772291724021,12.50343844,79.978,79.941,12.50922555]
[1772291724821,16.8016255,79.97,79.941,12.50922555]
[1772291725337,12.5035183,79.978,79.942,4.42856184]
[1772291725644,16.8016255,79.97,79.933,4.42856184]
[1772291725847,4.3046945,79.976,79.941,4.42856184]
[1772291726019,12.50171898,79.989,79.96,21.23018734]
[1772291726219,0.2,80.0,79.971,4.42856184]
[1772291726419,12.70008808,80.0,79.971,4.42856184]
[1772291726623,16.8016255,79.98,79.94,16.8016255]
[1772291727014,4.3046945,79.989,79.95,16.8016255]
[1772291727221,16.80656978,79.988,79.951,12.50766094]
[1772291727528,4.3046945,79.987,79.951,43.77681329]
[1772291727726,31.45,80.0,79.96,16.8016255]
[1772291727727,12.50069846,79.996,79.96,16.8016255]
[1772291727922,17.0016255,80.0,79.96,16.8016255]
[1772291728139,29.50165018,80.0,79.96,16.8016255]
[1772291728319,4.3046945,79.999,79.951,43.77681329]
[1772291728520,16.8016255,79.99,79.951,48.20537513]
[1772291728721,4.3046945,79.989,79.951,48.20537513]
[1772291729125,12.50187528,79.988,79.951,48.20537513]
[1772291729333,21.30632,80.0,79.952,4.42856184]
[1772291729529,21.30632,80.0,79.96,16.8016255]
[1772291729938,49.96501724,80.057,79.951,43.77681329]
[1772291729939,4.3046945,80.029,79.99,16.8016255]
[1772291730118,4.3046945,80.039,80.01,16.8016255]
[1772291730557,43.72321952,80.049,79.99,16.8016255]
[1772291730558,4.3046945,80.029,79.99,16.8016255]
[1772291731223,4.3046945,80.009,79.969,4.42856184]
[1772291731631,4.3046945,80.0,79.97,16.8016255]
[1772291731938,21.10632,80.0,79.961,4.42856184]
[1772291732639,4.3046945,79.999,79.961,4.42856184]
[1772291733245,12.5003125,79.998,79.97,16.8016255]
[1772291733443,4.3046945,79.999,79.963,4.42856184]
[1772291733643,49.98250612,80.028,79.962,43.77079112]
[1772291733644,12.4989311,80.007,79.97,21.23018734]
[1772291733825,4.3046945,80.006,79.97,16.8016255]
[1772291734334,4.3046945,80.016,79.98,16.8016255]
[1772291734534,49.95707117,80.069,79.971,4.42856184]
[1772291734535,4.3046945,80.009,79.971,4.42856184]
[1772291734922,16.8016255,80.0,79.962,43.77079112]
[1772291735142,4.3046945,79.999,79.962,48.19935296]
[1772291735539,12.5003125,79.998,79.962,48.19935296]
[1772291737747,4.3046945,79.997,79.962,16.93450216]
[1772291739144,4.3046945,80.007,79.97,16.8016255]
[1772291739322,16.80219499,80.016,79.98,16.8016255]
[1772291739522,4.3046945,80.015,79.98,16.8016255]
[1772291739936,4.3046945,80.015,79.964,1.25056275]
[1772291739937,4.3046945,80.015,79.99,16.8016255]
[1772291740142,16.8016255,80.03,79.99,16.8016255]
[1772291740143,12.49643175,80.023,79.99,16.8016255]
[1772291740350,4.3046945,80.019,79.981,16.93153129]
[1772291740528,4.3046945,80.019,79.981,12.50296945]
[1772291741150,4.22795739,80.009,79.97,16.8016255]
[1772291742248,49.97816185,80.035,79.946,50.0335493]
[1772291742249,4.22795739,80.029,79.99,20.91187989]
[1772291742426,12.49581175,80.027,80.0,16.8016255]
[1772291742829,4.22795739,80.029,80.0,16.8016255]
[1772291743770,21.16214428,80.02,79.981,4.05686412]
[1772291744260,4.36051878,80.02,79.99,16.8016255]
[1772291744630,12.49703195,80.019,79.991,12.5014064]
[1772291745045,4.36051878,80.02,79.991,12.5014064]
[1772291745252,12.49547039,80.029,79.992,4.05686412]
[1772291745554,43.73414636,80.029,79.992,4.05686412]
[1772291746253,12.49547039,80.029,79.992,4.05686412]
[1772291747258,4.36051878,80.026,79.993,12.50109384]
[1772291748355,4.36051878,80.049,80.02,16.8016255]
[1772291748737,4.36051878,80.049,80.011,4.05686412]
[1772291748936,4.36051878,80.049,80.02,16.8016255]
[1772291749145,4.36051878,80.049,80.021,12.49671961]
[1772291749347,0.2,80.05,80.03,16.8016255]
[1772291749539,0.2,80.05,80.022,4.05686412]
[1772291750263,4.36051878,80.049,80.01,16.8016255]
[1772291750466,4.36051878,80.029,79.996,12.50062503]
[1772291751147,4.36051878,80.029,80.001,12.49984375]
[1772291751336,4.56051878,80.05,80.02,16.8016255]
[1772291751535,12.49234843,80.049,80.02,16.8016255]
[1772291751734,4.56051878,80.05,80.03,16.8016255]
[1772291751943,0.2,80.05,80.03,16.8016255]
[1772291752530,0.2,80.05,80.021,4.05686412]
[1772291752748,12.49234843,80.049,80.021,4.05686412]
[1772291753170,0.2,80.05,80.021,4.05686412]
[1772291753652,0.2,80.05,80.022,12.49656344]
[1772291753964,3.69383402,80.087,80.022,12.49656344]
[1772291753965,4.36051878,80.07,80.04,16.8016255]
[1772291754954,12.48831556,80.075,80.041,16.55046115]
[1772291755155,3.69383402,80.087,80.051,4.05686412]
[1772291755341,16.8470957,80.086,80.051,4.05686412]
[1772291755541,4.36051878,80.085,80.06,16.8016255]
[1772291756138,4.36051878,80.079,80.041,43.7275896]
[1772291756746,4.36051878,80.079,80.041,47.78445372]
[1772291757065,12.48782437,80.078,80.05,16.8016255]
[1772291757266,4.36051878,80.077,80.041,16.55046115]
[1772291757473,4.36051878,80.077,80.04,29.29530534]
[1772291757764,4.36051878,80.077,80.041,4.05686412]
[1772291757945,4.36051878,80.077,80.05,16.8016255]
[1772291758347,4.36051878,80.077,80.04,43.72806264]
[1772291758550,4.36051878,80.069,80.035,12.49441999]
[1772291759243,4.36051878,80.067,80.03,16.8016255]
[1772291759769,4.36051878,80.067,80.031,4.05686412]
[1772291760850,4.36051878,80.067,80.04,16.8016255]
[1772291761364,4.36051878,80.059,80.02,20.85848962]
[1772291761565,4.36051878,80.049,80.013,12.49796908]
[1772291763545,12.49250449,80.048,80.013,12.49796908]
[1772291763745,12.49250449,80.048,80.02,16.8016255]
[1772291763966,16.85302327,80.048,80.02,16.8016255]
[1772291764148,16.85302327,80.048,79.986,1.25021878]
[1772291764149,4.36051878,80.039,80.005,12.49914915]
[1772291765850,4.36051878,80.037,80.01,16.8016255]
[1772291766256,4.36051878,80.037,80.002,4.05686412]
[1772291767462,12.49437753,80.036,80.003,12.49953126]
[1772291767851,12.49437753,80.036,80.003,16.55639538]
[1772291768047,4.36051878,80.035,80.003,12.49953126]
[1772291768257,4.36051878,80.019,79.984,4.05686412]
[1772291768773,43.73032135,80.036,79.975,12.50381044]
[1772291768774,4.36051878,80.009,79.975,12.50381044]
[1772291769771,4.36051878,80.007,79.971,12.50453289]
[1772291769969,4.36051878,79.999,79.958,12.50656594]
[1772291770160,4.36051878,79.999,79.96,16.8016255]
[1772291770377,4.36051878,79.999,79.961,4.05686412]
[1772291771262,4.36051878,79.999,79.958,43.7729808]
[1772291771263,49.97859215,80.035,79.963,4.41102526]
[1772291771456,4.16050894,80.029,80.0,16.73981482]
[1772291772057,4.16050894,80.029,79.99,16.73981482]
[1772291772363,4.16050894,79.999,79.965,4.41102526]
[1772291773554,4.16050894,79.997,79.966,12.50531475]
[1772291773750,4.16050894,80.019,79.981,4.41102526]
[1772291773955,16.65769213,80.019,79.99,16.73981482]
[1772291775260,4.16050894,80.018,79.981,4.41102526]
[1772291775658,4.16050894,80.018,79.954,50.02869704]
[1772291775659,4.16050894,80.038,80.0,16.73981482]
[1772291775863,4.16050894,80.037,80.0,16.73981482]
[1772291776583,16.73981482,80.03,79.99,16.73981482]
[1772291776767,4.16050894,80.029,79.99,16.73981482]
[1772291777570,16.73981482,80.03,79.991,43.75492242]
[1772291777571,4.16050894,80.027,79.991,43.75492242]
[1772291777879,4.16050894,80.027,79.991,48.16594768]
[1772291778469,4.16050894,80.019,79.991,12.5014064]
[1772291778781,4.16050894,80.027,79.992,4.41102526]
[1772291779967,12.49593881,80.026,79.993,12.50109384]
[1772291780172,4.16050894,80.019,79.993,12.50109384]
[1772291780875,4.16050894,80.019,79.983,12.50265681]
[1772291781385,4.16050894,80.009,79.972,12.50430298]
[1772291782188,4.16050894,80.007,79.972,12.50430298]
[1772291782488,4.16050894,80.026,79.991,4.41102526]
[1772291783268,4.16050894,80.048,80.011,4.41102526]
[1772291783667,4.16050894,80.048,80.02,16.73981482]
[1772291783883,4.16050894,80.048,80.021,4.41102526]
[1772291784668,12.49157411,80.054,80.022,12.49656344]
[1772291784869,12.489696,80.066,80.031,4.41102526]
[1772291785174,12.489696,80.066,80.04,16.73981482]
[1772291785987,4.16050894,80.067,80.04,16.73981482]
[1772291786190,16.6501969,80.067,80.04,16.73981482]
[1772291786388,4.16050894,80.079,80.041,4.41102526]
[1772291786574,4.16050894,80.089,80.06,21.15084008]
[1772291786778,16.64661814,80.089,80.061,12.49047601]
[1772291787171,4.16050894,80.088,80.045,4.41102526]
[1772291787374,4.16050894,80.088,80.014,75.05]
[1772291787375,4.16050894,80.069,80.035,4.41102526]
[1772291788892,4.16050894,80.069,80.036,12.49437753]
[1772291789293,12.48938402,80.068,80.036,43.73032135]
[1772291789488,4.16050894,80.069,80.036,43.73032135]
[1772291789794,12.48938402,80.068,80.036,43.73032135]
[1772291789977,4.16050894,80.067,80.036,12.49437753]
[1772291791088,4.16050894,80.067,80.04,16.73981482]
[1772291791391,16.65013222,80.067,80.04,16.73981482]
[1772291791894,16.65013222,80.067,80.037,4.41102526]
[1772291792092,12.48830626,80.075,80.041,4.41102526]
[1772291792282,4.16050894,80.074,80.041,4.41102526]
[1772291792892,4.16050894,80.069,80.036,12.49437753]
[1772291793399,4.16050894,80.069,80.033,4.41102526]
[1772291793890,49.93890047,80.098,80.032,43.73250698]
[1772291793891,4.16050894,80.09,80.06,16.73981482]
[1772291794882,12.48470623,80.098,80.061,4.41102526]
[1772291795094,16.14521517,80.098,80.061,4.41102526]
[1772291795285,4.16050894,80.097,80.062,16.90134526]
[1772291795990,4.16050894,80.097,80.063,4.41102526]
[1772291796195,4.16050894,80.097,80.062,12.49032]
[1772291796397,4.16050894,80.097,80.07,16.73981482]
[1772291796697,4.16050894,80.097,80.063,4.41102526]
[1772291796884,4.16050894,80.097,80.07,16.73981482]
[1772291797276,12.48501797,80.096,80.071,12.48891608]
[1772291797797,12.48501797,80.096,80.05,16.73981482]
[1772291797798,4.16050894,80.089,80.05,16.73981482]
[1772291798003,4.16050894,80.089,80.051,4.6953484]
[1772291798182,4.16050894,80.089,80.06,16.73981482]
[1772291798678,4.16050894,80.089,80.061,4.41102526]
[1772291798994,4.16050894,80.089,80.052,4.41102526]
[1772291799406,4.16050894,80.087,80.054,4.41102526]
[1772291800478,16.57140959,80.092,80.061,4.27930279]
[1772291800884,4.08564098,80.091,80.061,4.27930279]
[1772291801085,4.08564098,80.089,80.053,12.49172423]
[1772291801801,16.73981482,80.09,80.043,31.23284017]
[1772291801802,4.08564098,80.087,80.054,4.27930279]
[1772291803103,4.08564098,80.085,80.054,4.27930279]
[1772291803408,4.08564098,80.085,80.056,4.27930279]
[1772291804503,43.70301924,80.086,80.038,4.06233046]
[1772291804504,4.17582582,80.069,80.038,4.06233046]
[1772291805201,4.17582582,80.067,80.038,4.06233046]
[1772291805401,4.17582582,80.067,80.04,16.73981482]
[1772291807291,12.489696,80.066,80.041,12.49359703]
[1772291807492,12.489696,80.066,80.042,4.06233046]
[1772291809021,4.17582582,80.087,80.05,16.73981482]
[1772291809307,4.17582582,80.086,80.06,4.06233046]
[1772291810409,4.17582582,80.086,80.052,12.49174166]
[1772291810610,4.17582582,80.086,80.053,4.06233046]
[1772291811195,4.17582582,80.095,80.062,12.49032]
[1772291811394,12.48455036,80.099,80.071,4.06233046]
[1772291811808,4.17582582,80.103,80.071,4.06233046]
[1772291811809,16.65988201,80.103,80.071,4.06233046]
[1772291812112,4.17582582,80.102,80.071,4.06233046]
[1772291812701,4.17582582,80.099,80.071,4.06233046]
[1772291812901,43.69387355,80.103,80.071,4.06233046]
[1772291813414,4.17582582,80.102,80.071,4.06233046]
[1772291813603,31.20981736,80.103,80.054,12.49156819]
[1772291813604,4.17582582,80.089,80.054,12.49156819]
[1772291813804,4.17582582,80.089,80.054,16.55389865]
[1772291814304,4.17582582,80.079,80.041,4.06233046]
[1772291815897,12.48782437,80.078,80.05,16.73981482]
[1772291816906,12.48782437,80.078,80.05,20.80214528]
[1772291817101,12.48782437,80.078,80.051,4.06233046]
[1772291818211,4.17582582,80.078,80.051,4.06233046]
[1772291819016,4.17582582,80.078,80.051,16.55431169]
[1772291820021,4.17582582,80.078,80.043,4.06233046]
[1772291820202,16.73981482,80.08,80.043,4.06233046]
[1772291820203,4.17582582,80.076,80.043,4.06233046]
[1772291820402,4.17582582,80.076,80.044,12.49312877]
[1772291821221,4.17582582,80.076,80.05,16.73981482]
[1772291821402,4.17582582,80.076,80.04,16.73981482]
[1772291821726,4.17582582,80.076,80.042,4.06233046]
[1772291822423,12.48829222,80.075,80.044,4.06233046]
[1772291822604,16.66411804,80.075,80.044,4.06233046]
[1772291822804,16.65840403,80.112,80.071,4.06233046]
[1772291823001,19.80647584,80.109,80.078,4.06233046]
[1772291823220,4.17582582,80.089,80.048,4.06233046]
[1772291823528,4.17582582,80.069,80.041,4.06233046]
[1772291823706,4.17582582,80.079,80.041,4.06233046]
[1772291824334,4.17582582,80.069,80.033,4.06233046]
[1772291824620,4.17582582,80.069,80.014,75.05]
[1772291824621,12.48938402,80.068,80.035,4.06233046]
[1772291824835,16.66520984,80.068,80.035,4.06233046]
[1772291825209,4.17582582,80.067,80.035,4.06233046]
[1772291825723,4.17582582,80.084,80.05,16.73981482]
[1772291826105,4.17582582,80.079,80.05,16.73981482]
[1772291826304,4.17582582,80.092,80.061,4.06233046]
[1772291826502,4.17582582,80.092,80.06,16.73981482]
[1772291826703,4.17582582,80.089,80.053,4.06233046]
[1772291827127,4.17582582,80.089,80.061,4.06233046]
[1772291827317,4.17582582,80.089,80.06,16.73981482]
[1772291827318,4.17582582,80.098,80.07,20.80214528]
[1772291827503,4.17582582,80.098,80.071,4.06233046]
[1772291827701,4.17582582,80.098,80.073,4.06233046]
[1772291828619,3.14765486,80.108,80.091,4.06233046]
[1772291828832,12.48330358,80.107,80.091,4.06233046]
[1772291829140,3.14765486,80.108,80.091,4.06233046]
[1772291829822,3.14765486,80.108,80.081,4.06233046]
[1772291829823,12.48330358,80.107,80.081,4.06233046]
[1772291830120,3.14765486,80.108,80.082,4.06233046]
[1772291831323,12.48330358,80.107,80.082,4.06233046]
[1772291832016,4.10162331,80.106,80.077,12.48790172]
[1772291832320,4.10162331,80.106,80.033,62.74855273]
[1772291832321,4.10162331,80.099,80.061,12.49033437]
[1772291832826,4.10162331,80.09,80.062,4.34667081]
[1772291833123,4.10162331,80.099,80.062,4.34667081]
[1772291833727,4.10162331,80.089,80.061,12.49033437]
[1772291834119,4.10162331,80.069,80.032,4.34667081]
[1772291834425,4.10162331,80.059,80.021,4.34667081]
[1772291834602,4.10162331,80.059,80.017,12.49734431]
[1772291834810,4.10162331,80.039,80.005,4.34667081]
[1772291835007,4.10162331,80.039,80.01,16.69810924]
[1772291835509,4.10162331,80.039,80.011,4.34667081]
[1772291836103,12.49406531,80.038,80.011,4.34667081]
[1772291836308,4.10162331,80.046,80.012,4.34667081]
[1772291836503,4.10162331,80.039,80.006,12.49903986]
[1772291836921,4.10162331,80.039,80.01,16.69810924]
[1772291837504,4.10162331,80.039,80.01,21.04478005]
[1772291837718,4.10162331,80.039,80.011,4.34667081]
[1772291838026,12.49406531,80.038,80.012,12.49812528]
[1772291838635,4.10162331,80.039,80.013,4.34667081]
[1772291839136,16.59561435,80.039,80.013,4.34667081]
[1772291839916,2.51812389,80.084,80.012,12.49812528]
[1772291839917,4.10162331,80.078,80.031,4.34667081]
[1772291840124,4.10162331,80.076,80.04,16.69810924]
[1772291840438,4.10162331,80.069,80.033,4.34667081]
[1772291841940,4.10162331,80.076,80.041,4.34667081]
[1772291842239,4.10162331,80.076,80.04,16.69810924]
[1772291842240,4.10162331,80.074,80.043,4.34667081]
[1772291842528,4.10162331,80.069,80.042,12.49344094]
[1772291844437,4.10162331,80.079,80.05,16.69810924]
[1772291845016,16.58929173,80.079,80.05,16.69810924]
[1772291845216,4.10162331,80.078,80.043,4.34667081]
[1772291846527,4.10162331,80.076,80.044,16.83979958]
[1772291846724,2.51812389,80.083,80.051,4.34667081]
[1772291847022,15.00521337,80.083,80.051,4.34667081]
[1772291847535,2.51812389,80.083,80.06,16.69810924]
[1772291848030,2.51812389,80.083,80.061,4.34667081]
[1772291848536,2.51812389,80.083,80.062,12.49032]
[1772291848834,4.10162331,80.101,80.071,4.34667081]
[1772291850833,16.69810924,80.08,80.05,12.49204776]
[1772291851039,4.10162331,80.059,80.019,4.34667081]
[1772291851222,6.2423753,80.05,80.02,12.49687578]
[1772291851415,4.10162331,80.039,80.011,4.34667081]
[1772291852625,4.10162331,80.039,80.012,12.49812528]
[1772291852833,12.49406531,80.038,80.012,12.49812528]
[1772291853036,16.59568862,80.038,80.011,4.34667081]
[1772291853244,16.59568862,80.038,80.012,12.49812528]
[1772291856548,4.10162331,80.037,80.002,4.34667081]
[1772291857235,4.10162331,80.062,80.021,4.34667081]
[1772291857431,4.10162331,80.059,80.021,4.34667081]
[1772291858031,4.10162331,80.067,80.032,4.34667081]
[1772291859133,4.10162331,80.065,80.033,12.49484587]
[1772291859350,16.72262337,80.06,80.033,12.49484587]
[1772291861151,16.72262337,80.06,80.033,4.08611973]
[1772291861529,4.43093046,80.058,80.025,31.24023672]
[1772291861733,4.43093046,80.058,80.026,4.08611973]
[1772291862043,62.8379255,80.11,80.025,31.24023672]
[1772291862044,4.43093046,80.067,80.031,4.08611973]
[1772291863431,4.43093046,80.059,80.032,43.73250698]
[1772291863642,4.43093046,80.059,80.03,12.49527668]
[1772291864234,4.43093046,80.059,80.024,12.49625112]
[1772291864435,4.43093046,80.059,80.024,16.58237085]
[1772291865541,16.72262337,80.06,80.024,16.58237085]
[1772291865542,4.16538715,80.057,80.024,16.58237085]
[1772291866357,4.16538715,80.057,80.025,4.07646776]
[1772291866548,4.16538715,80.071,80.041,4.07646776]
[1772291866738,16.72262337,80.08,80.041,4.07646776]
[1772291866739,12.48822026,80.076,80.041,4.07646776]
[1772291866936,16.65360741,80.076,80.041,4.07646776]
[1772291867151,4.16538715,80.075,80.041,4.07646776]
[1772291867947,4.16538715,80.075,80.043,4.07646776]
[1772291868152,4.16538715,80.075,80.045,4.07646776]
[1772291871153,4.16538715,80.075,80.046,12.49281663]
[1772291872448,4.16538715,80.075,80.047,4.07646776]
[1772291873453,4.16538715,80.075,80.048,12.49250449]
[1772291873656,4.16538715,80.075,80.049,4.07646776]
[1772291873858,16.72262337,80.08,80.049,4.07646776]
[1772291874177,4.16538715,80.09,80.051,4.07646776]
[1772291874349,4.16538715,80.093,80.061,4.07646776]
[1772291874659,4.16538715,80.101,80.071,4.07646776]
[1772291875259,4.16538715,80.101,80.075,4.07646776]
[1772291875442,4.16538715,80.109,80.075,4.07646776]
[1772291875644,4.16538715,80.109,80.077,4.07646776]
[1772291875868,4.16538715,80.109,80.081,4.07646776]
[1772291876064,16.64757035,80.115,80.081,4.07646776]
[1772291876267,16.72262337,80.12,80.085,4.07646776]
[1772291876268,4.16538715,80.114,80.085,4.07646776]
[1772291877542,4.16538715,80.114,80.086,12.48657692]
[1772291878571,4.16538715,80.114,80.086,16.56304468]
[1772291879268,4.16538715,80.113,80.086,16.56304468]
[1772291880356,4.16538715,80.109,80.086,12.48657692]
[1772291881149,62.38748275,80.145,80.086,12.48657692]
[1772291881150,4.16538715,80.127,80.095,4.07646776]
[1772291881349,4.16538715,80.119,80.086,12.48657692]
[1772291881551,4.16538715,80.119,80.087,4.07646776]
[1772291881854,4.16538715,80.129,80.095,4.07646776]
[1772291882169,4.16538715,80.127,80.097,4.07646776]
[1772291883056,4.16538715,80.127,80.101,4.07646776]
[1772291883256,4.16538715,80.135,80.101,4.07646776]
[1772291883665,4.16538715,80.129,80.101,4.07646776]
[1772291884552,4.16538715,80.128,80.102,12.48408279]
[1772291885866,4.16538715,80.128,80.102,4.07646776]
[1772291887162,4.16538715,80.135,80.104,4.07646776]
[1772291888071,4.16538715,80.135,80.106,12.48345941]
[1772291888274,4.16538715,80.151,80.121,4.07646776]
[1772291888451,4.16538715,80.149,80.114,4.07646776]
[1772291888853,29.15787381,80.15,80.086,4.07646776]
[1772291888854,4.16538715,80.129,80.086,4.07646776]
[1772291889082,4.16538715,80.099,80.072,4.07646776]
[1772291889253,4.16538715,80.089,80.053,4.07646776]
[1772291889457,4.16538715,80.089,80.061,4.07646776]
[1772291889977,4.16538715,80.089,80.066,12.489696]
[1772291890347,16.65152681,80.089,80.066,12.489696]
[1772291890674,4.16538715,80.089,80.066,16.64954526]
[1772291890876,4.16538715,80.089,80.066,47.87378526]
[1772291892078,4.27801811,80.105,80.07,16.68126745]
[1772291892254,4.27801811,80.112,80.081,4.15984926]
[1772291894384,16.68126745,80.12,80.082,12.48720061]
[1772291894385,4.27801811,80.11,80.082,12.48720061]
[1772291895774,124.29247633,80.138,80.063,5.40886565]
[1772291895775,16.6911487,80.1,80.063,5.40886565]
[1772291895956,4.27801811,80.099,80.064,16.64985725]
[1772291896157,4.27801811,80.099,80.064,47.87487723]
[1772291896356,4.27801811,80.099,80.065,4.15984926]
[1772291896655,4.27801811,80.099,80.071,4.15984926]
[1772291896855,16.6911487,80.12,80.081,4.30201083]
[1772291897069,4.27801811,80.122,80.095,4.15984926]
[1772291897270,4.27801811,80.122,80.1,16.6911487]
[1772291897480,4.27801811,80.129,80.101,4.4441724]
[1772291897687,4.27801811,80.129,80.104,4.15984926]
[1772291897993,4.27801811,80.139,80.107,4.15984926]
[1772291899088,4.27801811,80.139,80.111,4.15984926]
[1772291899578,4.27801811,80.138,80.105,12.48361525]
[1772291899892,4.27801811,80.138,80.103,0.28432314]
[1772291900296,4.27801811,80.136,80.103,0.28432314]
[1772291900886,4.27801811,80.129,80.09,16.6911487]
[1772291901478,4.27801811,80.129,80.098,12.48470623]
[1772291902097,4.27801811,80.129,80.101,4.15984926]
[1772291902295,4.27801811,80.129,80.102,0.28432314]
[1772291902600,4.27801811,80.129,80.102,4.4441724]
[1772291905478,4.27801811,80.129,80.1,1.24843945]
[1772291905681,4.27801811,80.127,80.095,12.48517385]
[1772291905898,4.27801811,80.127,80.095,16.64502311]
[1772291906108,4.27801811,80.127,80.095,47.85795775]
[1772291906291,4.27801811,80.137,80.11,16.6911487]
[1772291906599,4.27801811,80.137,80.109,4.15984926]
[1772291907405,4.27801811,80.137,80.102,4.4441724]
[1772291907597,4.27801811,80.135,80.104,0.28432314]
[1772291907998,4.27801811,80.135,80.103,12.48392694]
[1772291908382,4.27801811,80.135,80.104,4.15984926]
[1772291911214,4.27801811,80.135,80.106,4.15984926]
[1772291912591,4.27801811,80.158,80.131,4.15984926]
[1772291913115,4.27801811,80.158,80.141,12.47800751]
[1772291913606,4.27801811,80.158,80.131,12.47956471]
[1772291913820,4.27801811,80.157,80.131,12.47956471]
[1772291913999,4.27801811,80.149,80.121,12.4811223]
[1772291915589,4.27801811,80.149,80.114,4.15984926]
[1772291915787,4.27801811,80.149,80.12,6.22763627]
[1772291915991,4.27801811,80.149,80.121,4.15984926]
[1772291917397,4.27801811,80.149,80.114,4.15984926]
[1772291917700,0.2,80.16,80.091,4.15984926]
[1772291917701,4.27801811,80.129,80.091,4.15984926]
[1772291917906,4.27801811,80.129,80.092,4.4441724]
[1772291918210,4.27801811,80.129,80.092,4.15984926]
[1772291918714,4.27801811,80.129,80.094,35.37316691]
[1772291919113,4.27801811,80.127,80.095,4.15984926]
[1772291919714,4.27801811,80.127,80.101,4.15984926]
[1772291919903,4.27801811,80.127,80.095,4.15984926]
[1772291920816,4.09816489,80.134,80.095,4.15984926]
[1772291921022,4.09816489,80.134,80.101,4.48212796]
[1772291921318,12.47912156,80.134,80.102,16.96621075]
[1772291921503,4.09816489,80.133,80.102,16.96621075]
[1772291921709,4.09816489,80.133,80.104,0.28432314]
[1772291921914,4.09816489,80.141,80.111,4.48212796]
[1772291923617,4.09816489,80.141,80.112,16.96465242]
[1772291923941,4.32803078,80.139,80.112,16.96465242]
[1772291924415,4.32803078,80.139,80.108,12.48300474]
[1772291925415,4.32803078,80.139,80.111,4.26928118]
[1772291925610,4.32803078,80.146,80.113,4.55360432]
[1772291925926,4.32803078,80.146,80.113,4.26928118]
[1772291926105,4.32803078,80.146,80.115,4.26928118]
[1772291926901,4.32803078,80.146,80.112,12.48252446]
[1772291927102,4.32803078,80.139,80.112,12.48252446]
[1772291927304,4.32803078,80.139,80.113,4.26928118]
[1772291928015,4.32803078,80.139,80.115,12.48205704]
[1772291929415,4.32803078,80.138,80.115,12.48205704]
[1772291929817,4.32803078,80.138,80.115,16.75133822]
[1772291930320,4.32803078,80.138,80.116,4.26928118]
[1772291930905,4.32803078,80.149,80.116,4.26928118]
[1772291931102,4.32803078,80.149,80.115,43.68719964]
[1772291931103,4.32803078,80.148,80.115,12.48205704]
[1772291931613,4.32803078,80.148,80.115,16.75133822]
[1772291931817,4.32803078,80.148,80.116,4.26928118]
[1772291932321,4.32803078,80.139,80.115,12.48205704]
[1772291932709,4.32803078,80.137,80.11,4.26928118]
[1772291933110,4.32803078,80.143,80.111,4.26928118]
[1772291933308,4.32803078,80.143,80.115,4.26928118]
[1772291933506,4.32803078,80.149,80.115,4.26928118]
[1772291934919,4.32803078,80.149,80.121,4.41144275]
[1772291935120,4.32803078,80.149,80.121,4.55360432]
[1772291935424,4.32803078,80.149,80.121,4.26928118]
[1772291936140,4.32803078,80.139,80.116,12.48190124]
[1772291936507,4.32803078,80.139,80.117,4.26928118]
[1772291937116,4.32803078,80.154,80.123,4.26928118]
[1772291937426,4.32803078,80.149,80.119,4.26928118]
[1772291938113,4.32803078,80.149,80.118,43.68556378]
[1772291938318,4.32803078,80.149,80.119,4.26928118]
[1772291938522,4.32803078,80.149,80.118,12.48158965]
[1772291939226,4.32803078,80.147,80.114,4.26928118]
[1772291940122,4.32803078,80.147,80.121,4.26928118]
[1772291940822,18.90275769,80.16,80.131,4.26928118]
[1772291940823,4.32803078,80.159,80.131,4.26928118]
[1772291941022,0.2,80.16,80.135,4.26928118]
[1772291941406,4.32803078,80.159,80.12,6.22763627]
[1772291941611,4.32803078,80.149,80.115,4.26928118]
[1772291941912,4.32803078,80.149,80.116,4.26928118]
[1772291942508,4.32803078,80.156,80.121,4.55360432]
[1772291942808,1.24794089,80.159,80.131,4.26928118]
[1772291942809,4.32803078,80.159,80.131,4.26928118]
[1772291943009,4.32803078,80.159,80.13,6.22763627]
[1772291943010,4.32803078,80.159,80.135,4.26928118]
[1772291943319,4.32803078,80.159,80.136,4.26928118]
[1772291943514,4.32803078,80.149,80.113,12.48236865]
[1772291943716,4.32803078,80.149,80.114,4.26928118]
[1772291944717,4.32803078,80.147,80.113,12.48236865]
[1772291944918,6.22763627,80.14,80.113,12.48236865]
[1772291945222,4.32803078,80.139,80.113,12.48236865]
[1772291947137,4.32803078,80.139,80.107,43.69156253]
[1772291947332,4.32803078,80.139,80.11,6.22763627]
[1772291947713,4.32803078,80.139,80.107,43.69156253]
[1772291947919,4.32803078,80.137,80.099,4.26928118]
[1772291948224,4.32803078,80.137,80.101,4.26928118]
[1772291949541,4.32803078,80.137,80.082,137.43558481]
[1772291949542,4.32803078,80.129,80.091,12.4857974]
[1772291950540,6.22763627,80.12,80.091,12.4857974]
[1772291950713,4.4316656,80.119,80.091,12.4857974]
[1772291952234,4.4316656,80.118,80.091,12.4857974]
[1772291955064,4.4316656,80.116,80.086,31.21638138]
[1772291955216,4.4316656,80.116,80.039,102.3]
[1772291955217,4.4316656,80.099,80.066,4.39193581]